[Event "Titled Tuesday Blitz April 18 Late 2023"]
[White "Kubatko, Ivan"]
[Black "Harish, Neeraj"]
[WhiteFideId "24111473"]
[BlackFideId "30958130"]
[WhiteElo "2285"]
[BlackElo "1965"]
[Result "1-0"]
[Round "10"]
[TimeControl "180+2"]
[Date "2023.04.18"]
[WhiteClock "0:00:02"]
[BlackClock "0:00:01"]

1. e4 {[%clk 0:03:00]}  e5 {[%clk 0:02:59]} 2. Nf3 {[%clk 0:03:00]}  Nc6 {[%clk 0:02:59]} 3. Nc3 {[%clk 0:03:00]}  Nf6 {[%clk 0:02:58]} 4. g3 {[%clk 0:03:00]}  Bc5 {[%clk 0:02:48]} 5. Bg2 {[%clk 0:02:59]}  O-O {[%clk 0:02:48]} 6. O-O {[%clk 0:02:59]}  d6 {[%clk 0:02:33]} 7. h3 {[%clk 0:02:57]}  a5 {[%clk 0:02:27]} 8. d3 {[%clk 0:02:52]}  h6 {[%clk 0:02:24]} 9. Kh2 {[%clk 0:02:44]}  Be6 {[%clk 0:02:08]} 10. a3 {[%clk 0:02:36]}  Re8 {[%clk 0:02:02]} 11. Nh4 {[%clk 0:02:34]}  d5 {[%clk 0:01:58]} 12. exd5 {[%clk 0:01:59]}  Nxd5 {[%clk 0:01:57]} 13. Ne4 {[%clk 0:01:59]}  Be7 {[%clk 0:01:49]} 14. Qh5 {[%clk 0:01:26]}  Bxh4 {[%clk 0:01:33]} 15. gxh4 {[%clk 0:01:26]}  Nf6 {[%clk 0:01:23]} 16. Nxf6+ {[%clk 0:01:17]}  Qxf6 {[%clk 0:01:24]} 17. Be3 {[%clk 0:01:15]}  Rad8 {[%clk 0:01:22]} 18. Be4 {[%clk 0:00:44]}  Bd5 {[%clk 0:01:11]} 19. Rg1 {[%clk 0:00:37]}  Bxe4 {[%clk 0:00:57]} 20. dxe4 {[%clk 0:00:38]}  Kh7 {[%clk 0:00:46]} 21. c3 {[%clk 0:00:37]}  Ne7 {[%clk 0:00:41]} 22. Rg2 {[%clk 0:00:33]}  Qe6 {[%clk 0:00:12]} 23. Rag1 {[%clk 0:00:27]}  Ng6 {[%clk 0:00:12]} 24. Qf5 {[%clk 0:00:24]}  Rg8 {[%clk 0:00:06]} 25. h5 {[%clk 0:00:22]}  Qxf5 {[%clk 0:00:06]} 26. exf5 {[%clk 0:00:21]}  Nf4 {[%clk 0:00:06]} 27. Rg4 {[%clk 0:00:13]}  Nd5 {[%clk 0:00:06]} 28. Bc5 {[%clk 0:00:06]}  Nf6 {[%clk 0:00:06]} 29. Rc4 {[%clk 0:00:05]}  Nxh5 {[%clk 0:00:06]} 30. Be3 {[%clk 0:00:04]}  c6 {[%clk 0:00:04]} 31. a4 {[%clk 0:00:04]}  Nf6 {[%clk 0:00:04]} 32. b4 {[%clk 0:00:04]}  axb4 {[%clk 0:00:03]} 33. cxb4 {[%clk 0:00:04]}  Ra8 {[%clk 0:00:04]} 34. a5 {[%clk 0:00:04]}  Rad8 {[%clk 0:00:04]} 35. a6 {[%clk 0:00:03]}  bxa6 {[%clk 0:00:03]} 36. Rxc6 {[%clk 0:00:04]}  Rb8 {[%clk 0:00:04]} 37. Bc5 {[%clk 0:00:04]}  Rgc8 {[%clk 0:00:04]} 38. Rxa6 {[%clk 0:00:04]}  Ne4 {[%clk 0:00:04]} 39. Be7 {[%clk 0:00:03]}  Nc3 {[%clk 0:00:02]} 40. f6 {[%clk 0:00:03]}  Ne4 {[%clk 0:00:02]} 41. Rxg7+ {[%clk 0:00:02]}  Kh8 {[%clk 0:00:03]} 42. Rxf7 {[%clk 0:00:02]}  Nxf2 {[%clk 0:00:02]} 43. Rg7 {[%clk 0:00:02]}  Ne4 {[%clk 0:00:02]} 44. Rg2 {[%clk 0:00:02]}  Nc3 {[%clk 0:00:01]} 45. f7 {[%clk 0:00:02]}  Nd5 {[%clk 0:00:01]} 46. Rxh6# {[%clk 0:00:02]} 1-0


[Site "https://www.chess.com"]

[Event "Titled Tuesday Blitz April 18 Late 2023"]
[White "Florianovitz, Derlei Alex"]
[Black "Gatterer, Florian"]
[WhiteFideId "2114178"]
[BlackFideId "811688"]
[WhiteElo "1953"]
[BlackElo "2221"]
[Result "1/2-1/2"]
[Round "10"]
[TimeControl "180+2"]
[Date "2023.04.18"]
[WhiteClock "0:02:06"]
[BlackClock "0:01:15"]

1. e4 {[%clk 0:03:00]}  c5 {[%clk 0:02:59]} 2. Nf3 {[%clk 0:03:01]}  e6 {[%clk 0:03:00]} 3. d4 {[%clk 0:03:01]}  cxd4 {[%clk 0:03:00]} 4. Nxd4 {[%clk 0:03:02]}  Nf6 {[%clk 0:03:01]} 5. Nc3 {[%clk 0:03:02]}  Nc6 {[%clk 0:03:02]} 6. Nxc6 {[%clk 0:02:58]}  bxc6 {[%clk 0:03:03]} 7. Bd3 {[%clk 0:02:58]}  d5 {[%clk 0:03:02]} 8. exd5 {[%clk 0:02:59]}  cxd5 {[%clk 0:03:01]} 9. O-O {[%clk 0:02:59]}  Bd6 {[%clk 0:02:58]} 10. Bg5 {[%clk 0:02:57]}  h6 {[%clk 0:02:57]} 11. Bh4 {[%clk 0:02:57]}  O-O {[%clk 0:02:57]} 12. Re1 {[%clk 0:02:56]}  a5 {[%clk 0:02:50]} 13. Qf3 {[%clk 0:02:50]}  Be7 {[%clk 0:02:38]} 14. a4 {[%clk 0:02:49]}  Bb7 {[%clk 0:02:37]} 15. Nb5 {[%clk 0:02:47]}  Nd7 {[%clk 0:02:18]} 16. Bg3 {[%clk 0:02:45]}  Ba6 {[%clk 0:02:04]} 17. c3 {[%clk 0:02:35]}  Nc5 {[%clk 0:01:59]} 18. Bc2 {[%clk 0:02:35]}  Bxb5 {[%clk 0:01:48]} 19. axb5 {[%clk 0:02:35]}  Bh4 {[%clk 0:01:39]} 20. b4 {[%clk 0:02:24]}  Bxg3 {[%clk 0:01:30]} 21. bxc5 {[%clk 0:02:23]}  Bh4 {[%clk 0:01:25]} 22. Reb1 {[%clk 0:02:10]}  Qc7 {[%clk 0:01:21]} 23. c6 {[%clk 0:02:06]}  Be7 {[%clk 0:01:15]} 1/2-1/2


[Site "https://www.chess.com"]

[Event "Titled Tuesday Blitz April 18 Late 2023"]
[White "Vaglio Munoz, Jaime"]
[Black "Dahlgren, James Allen"]
[WhiteFideId "6500145"]
[BlackFideId "22256873"]
[WhiteElo "2199"]
[BlackElo "2195"]
[Result "0-1"]
[Round "10"]
[TimeControl "180+2"]
[Date "2023.04.18"]
[WhiteClock "0:00:02"]
[BlackClock "0:00:12"]

1. Nf3 {[%clk 0:03:00]}  e6 {[%clk 0:03:00]} 2. b3 {[%clk 0:02:59]}  c5 {[%clk 0:03:01]} 3. Bb2 {[%clk 0:02:59]}  Nc6 {[%clk 0:03:01]} 4. g3 {[%clk 0:02:58]}  d5 {[%clk 0:03:02]} 5. Bg2 {[%clk 0:02:58]}  Nf6 {[%clk 0:03:03]} 6. O-O {[%clk 0:02:58]}  Be7 {[%clk 0:03:03]} 7. Ne5 {[%clk 0:02:58]}  O-O {[%clk 0:03:03]} 8. f4 {[%clk 0:02:57]}  Bd7 {[%clk 0:03:02]} 9. e3 {[%clk 0:02:57]}  b5 {[%clk 0:03:02]} 10. a4 {[%clk 0:02:56]}  b4 {[%clk 0:03:02]} 11. d3 {[%clk 0:02:56]}  a5 {[%clk 0:03:01]} 12. Nd2 {[%clk 0:02:55]}  Qc7 {[%clk 0:03:00]} 13. h3 {[%clk 0:02:54]}  Nxe5 {[%clk 0:02:58]} 14. fxe5 {[%clk 0:02:54]}  Ne8 {[%clk 0:02:57]} 15. g4 {[%clk 0:02:53]}  Bc6 {[%clk 0:02:44]} 16. e4 {[%clk 0:02:52]}  d4 {[%clk 0:02:43]} 17. Nc4 {[%clk 0:02:49]}  Bb7 {[%clk 0:02:40]} 18. Qd2 {[%clk 0:02:48]}  h6 {[%clk 0:02:36]} 19. Rf3 {[%clk 0:02:32]}  Ba6 {[%clk 0:02:32]} 20. Raf1 {[%clk 0:02:29]}  Bxc4 {[%clk 0:02:30]} 21. dxc4 {[%clk 0:02:28]}  Qxe5 {[%clk 0:02:31]} 22. Qd3 {[%clk 0:02:21]}  Bg5 {[%clk 0:02:27]} 23. Bc1 {[%clk 0:02:18]}  Ra7 {[%clk 0:02:24]} 24. Bf4 {[%clk 0:01:55]}  Bxf4 {[%clk 0:02:22]} 25. Rxf4 {[%clk 0:01:56]}  g5 {[%clk 0:02:11]} 26. R4f2 {[%clk 0:01:49]}  f6 {[%clk 0:02:11]} 27. Rf3 {[%clk 0:01:28]}  Nd6 {[%clk 0:02:09]} 28. Re1 {[%clk 0:01:24]}  Nf7 {[%clk 0:02:06]} 29. Qe2 {[%clk 0:01:23]}  Nh8 {[%clk 0:02:05]} 30. Qf2 {[%clk 0:01:22]}  Ng6 {[%clk 0:02:03]} 31. Bf1 {[%clk 0:01:17]}  Nh4 {[%clk 0:01:58]} 32. Rg3 {[%clk 0:01:15]}  Kf7 {[%clk 0:01:49]} 33. Bd3 {[%clk 0:01:15]}  Ke8 {[%clk 0:01:48]} 34. Rf1 {[%clk 0:01:14]}  Raf7 {[%clk 0:01:48]} 35. Re1 {[%clk 0:01:07]}  Kd7 {[%clk 0:01:48]} 36. Bf1 {[%clk 0:00:58]}  Kc7 {[%clk 0:01:47]} 37. Bd3 {[%clk 0:00:57]}  Kb6 {[%clk 0:01:47]} 38. Bf1 {[%clk 0:00:57]}  Ng6 {[%clk 0:01:32]} 39. Bd3 {[%clk 0:00:53]}  Rh8 {[%clk 0:01:31]} 40. Rf3 {[%clk 0:00:43]}  h5 {[%clk 0:01:25]} 41. Rf1 {[%clk 0:00:39]}  Nf4 {[%clk 0:01:18]} 42. Rxf4 {[%clk 0:00:32]}  gxf4 {[%clk 0:01:19]} 43. Qxf4 {[%clk 0:00:32]}  Qxf4 {[%clk 0:01:12]} 44. Rxf4 {[%clk 0:00:33]}  e5 {[%clk 0:01:10]} 45. Rf5 {[%clk 0:00:31]}  hxg4 {[%clk 0:01:09]} 46. hxg4 {[%clk 0:00:31]}  Rh6 {[%clk 0:00:52]} 47. Be2 {[%clk 0:00:27]}  Rg7 {[%clk 0:00:46]} 48. Bf3 {[%clk 0:00:26]}  Kc7 {[%clk 0:00:44]} 49. Be2 {[%clk 0:00:25]}  Kd6 {[%clk 0:00:44]} 50. Kg2 {[%clk 0:00:24]}  Ke6 {[%clk 0:00:39]} 51. Kg3 {[%clk 0:00:23]}  Rh1 {[%clk 0:00:38]} 52. Bf1 {[%clk 0:00:22]}  Rg5 {[%clk 0:00:35]} 53. Rf2 {[%clk 0:00:21]}  Rg1+ {[%clk 0:00:31]} 54. Bg2 {[%clk 0:00:20]}  Rc1 {[%clk 0:00:28]} 55. Kh4 {[%clk 0:00:19]}  Kf7 {[%clk 0:00:27]} 56. Bf1 {[%clk 0:00:19]}  Kg6 {[%clk 0:00:27]} 57. Bd3 {[%clk 0:00:18]}  Kg7 {[%clk 0:00:26]} 58. Kg3 {[%clk 0:00:16]}  Rg6 {[%clk 0:00:25]} 59. Kf3 {[%clk 0:00:16]}  Rh6 {[%clk 0:00:25]} 60. Kg2 {[%clk 0:00:14]}  Kg6 {[%clk 0:00:25]} 61. Rf3 {[%clk 0:00:12]}  Kg5 {[%clk 0:00:23]} 62. Rf5+ {[%clk 0:00:10]}  Kxg4 {[%clk 0:00:23]} 63. Be2+ {[%clk 0:00:10]}  Kh4 {[%clk 0:00:21]} 64. Kh2 {[%clk 0:00:10]}  Rxc2 {[%clk 0:00:17]} 65. Rf2 {[%clk 0:00:09]}  Kg5+ {[%clk 0:00:14]} 66. Kg3 {[%clk 0:00:09]}  Rc3+ {[%clk 0:00:13]} 67. Kg2 {[%clk 0:00:08]}  Rxb3 {[%clk 0:00:13]} 68. Rf5+ {[%clk 0:00:09]}  Kg6 {[%clk 0:00:13]} 69. Bg4 {[%clk 0:00:08]}  Rc3 {[%clk 0:00:11]} 70. Rf2 {[%clk 0:00:07]}  Rxc4 {[%clk 0:00:10]} 71. Bf5+ {[%clk 0:00:08]}  Kg7 {[%clk 0:00:10]} 72. Kf3 {[%clk 0:00:08]}  Rc3+ {[%clk 0:00:10]} 73. Kg4 {[%clk 0:00:07]}  b3 {[%clk 0:00:10]} 74. Rb2 {[%clk 0:00:06]}  c4 {[%clk 0:00:11]} 75. Be6 {[%clk 0:00:05]}  Rc2 {[%clk 0:00:11]} 76. Rb1 {[%clk 0:00:04]}  b2 {[%clk 0:00:10]} 77. Bxc4 {[%clk 0:00:03]}  Rxc4 {[%clk 0:00:11]} 78. Rxb2 {[%clk 0:00:03]}  Kg6 {[%clk 0:00:11]} 79. Rb8 {[%clk 0:00:03]}  Rh7 {[%clk 0:00:11]} 80. Rg8+ {[%clk 0:00:02]}  Rg7 {[%clk 0:00:11]} 81. Ra8 {[%clk 0:00:02]}  Rxa4 {[%clk 0:00:12]} 0-1


[Site "https://www.chess.com"]

[Event "Titled Tuesday Blitz April 18 Late 2023"]
[White "mjelcic"]
[Black "Alexikov, Alexander"]
[BlackFideId "14103958"]
[WhiteElo "2194"]
[BlackElo "2186"]
[Result "1-0"]
[Round "10"]
[TimeControl "180+2"]
[Date "2023.04.18"]
[WhiteClock "0:00:03"]
[BlackClock "0:00:01"]

1. c4 {[%clk 0:03:00]}  Nf6 {[%clk 0:02:56]} 2. Nc3 {[%clk 0:03:00]}  g6 {[%clk 0:02:55]} 3. g3 {[%clk 0:02:56]}  Bg7 {[%clk 0:02:54]} 4. Bg2 {[%clk 0:02:56]}  d6 {[%clk 0:02:54]} 5. e4 {[%clk 0:02:47]}  O-O {[%clk 0:02:47]} 6. Nge2 {[%clk 0:02:46]}  c6 {[%clk 0:02:47]} 7. O-O {[%clk 0:02:46]}  Nbd7 {[%clk 0:02:42]} 8. d4 {[%clk 0:02:42]}  a6 {[%clk 0:02:41]} 9. a4 {[%clk 0:02:32]}  a5 {[%clk 0:02:39]} 10. f4 {[%clk 0:02:29]}  Qc7 {[%clk 0:02:39]} 11. e5 {[%clk 0:02:29]}  Ne8 {[%clk 0:02:35]} 12. Be3 {[%clk 0:02:25]}  e6 {[%clk 0:02:31]} 13. Qd2 {[%clk 0:02:09]}  d5 {[%clk 0:02:29]} 14. cxd5 {[%clk 0:02:00]}  exd5 {[%clk 0:02:25]} 15. Rac1 {[%clk 0:01:55]}  Qd8 {[%clk 0:02:07]} 16. f5 {[%clk 0:01:55]}  gxf5 {[%clk 0:01:59]} 17. Bh3 {[%clk 0:01:50]}  Nb6 {[%clk 0:01:55]} 18. b3 {[%clk 0:01:44]}  f6 {[%clk 0:01:53]} 19. Bxf5 {[%clk 0:01:38]}  fxe5 {[%clk 0:01:46]} 20. Bxc8 {[%clk 0:01:31]}  Nxc8 {[%clk 0:01:44]} 21. Rxf8+ {[%clk 0:01:24]}  Kxf8 {[%clk 0:01:44]} 22. dxe5 {[%clk 0:01:08]}  Bxe5 {[%clk 0:01:43]} 23. Rf1+ {[%clk 0:01:07]}  Kg8 {[%clk 0:01:41]} 24. Bg5 {[%clk 0:00:58]}  Qd6 {[%clk 0:01:31]} 25. Nd4 {[%clk 0:00:57]}  Ng7 {[%clk 0:01:25]} 26. Qf2 {[%clk 0:00:49]}  h6 {[%clk 0:00:54]} 27. Be3 {[%clk 0:00:22]}  Ne7 {[%clk 0:00:46]} 28. Qf7+ {[%clk 0:00:21]}  Kh7 {[%clk 0:00:45]} 29. Nce2 {[%clk 0:00:16]}  c5 {[%clk 0:00:33]} 30. Nb5 {[%clk 0:00:16]}  Qe6 {[%clk 0:00:32]} 31. Qxe6 {[%clk 0:00:14]}  Nxe6 {[%clk 0:00:31]} 32. Rf7+ {[%clk 0:00:14]}  Kg6 {[%clk 0:00:31]} 33. Rxe7 {[%clk 0:00:15]}  Kf6 {[%clk 0:00:31]} 34. Rxb7 {[%clk 0:00:14]}  d4 {[%clk 0:00:31]} 35. Bf2 {[%clk 0:00:13]}  d3 {[%clk 0:00:28]} 36. Nec3 {[%clk 0:00:13]}  Rd8 {[%clk 0:00:21]} 37. Ne4+ {[%clk 0:00:12]}  Kf5 {[%clk 0:00:20]} 38. Nd2 {[%clk 0:00:10]}  Nd4 {[%clk 0:00:17]} 39. Rf7+ {[%clk 0:00:09]}  Kg6 {[%clk 0:00:16]} 40. Re7 {[%clk 0:00:06]}  Bf6 {[%clk 0:00:15]} 41. Re4 {[%clk 0:00:05]}  Ne2+ {[%clk 0:00:10]} 42. Kf1 {[%clk 0:00:05]}  Bg5 {[%clk 0:00:10]} 43. Nf3 {[%clk 0:00:04]}  Nc1 {[%clk 0:00:06]} 44. Be3 {[%clk 0:00:03]}  Nxb3 {[%clk 0:00:04]} 45. Bxg5 {[%clk 0:00:02]}  hxg5 {[%clk 0:00:03]} 46. Nc3 {[%clk 0:00:02]}  d2 {[%clk 0:00:01]} 47. Nd1 {[%clk 0:00:03]} 1-0


[Site "https://www.chess.com"]

[Event "Titled Tuesday Blitz April 18 Late 2023"]
[White "crosky"]
[Black "Atanasov, Radislav"]
[BlackFideId "2901471"]
[WhiteElo "2368"]
[BlackElo "2077"]
[Result "0-1"]
[Round "10"]
[TimeControl "180+2"]
[Date "2023.04.18"]
[WhiteClock "0:00:08"]
[BlackClock "0:00:04"]

1. c4 {[%clk 0:03:00]}  Nf6 {[%clk 0:02:55]} 2. Nc3 {[%clk 0:03:00]}  e6 {[%clk 0:02:52]} 3. d4 {[%clk 0:02:59]}  c5 {[%clk 0:02:51]} 4. d5 {[%clk 0:02:58]}  exd5 {[%clk 0:02:47]} 5. cxd5 {[%clk 0:02:59]}  d6 {[%clk 0:02:47]} 6. e4 {[%clk 0:02:58]}  g6 {[%clk 0:02:47]} 7. Bb5+ {[%clk 0:02:47]}  Bd7 {[%clk 0:02:45]} 8. a4 {[%clk 0:02:45]}  a6 {[%clk 0:02:43]} 9. Bd3 {[%clk 0:02:42]}  Bg7 {[%clk 0:02:43]} 10. Nf3 {[%clk 0:02:38]}  Bg4 {[%clk 0:02:40]} 11. O-O {[%clk 0:02:35]}  Nbd7 {[%clk 0:02:24]} 12. Bf4 {[%clk 0:02:32]}  Qe7 {[%clk 0:02:20]} 13. h3 {[%clk 0:02:21]}  Bxf3 {[%clk 0:02:16]} 14. Qxf3 {[%clk 0:02:22]}  O-O {[%clk 0:02:16]} 15. Qg3 {[%clk 0:02:13]}  Ne8 {[%clk 0:02:13]} 16. Rae1 {[%clk 0:02:09]}  Rc8 {[%clk 0:01:57]} 17. Nd1 {[%clk 0:02:00]}  c4 {[%clk 0:01:51]} 18. Bb1 {[%clk 0:02:00]}  b5 {[%clk 0:01:50]} 19. axb5 {[%clk 0:01:58]}  axb5 {[%clk 0:01:50]} 20. Bd2 {[%clk 0:01:53]}  Nc5 {[%clk 0:01:23]} 21. f4 {[%clk 0:01:48]}  Nb3 {[%clk 0:01:21]} 22. Bc3 {[%clk 0:01:47]}  Bxc3 {[%clk 0:01:15]} 23. bxc3 {[%clk 0:01:47]}  Nd2 {[%clk 0:01:14]} 24. Ne3 {[%clk 0:01:20]}  Nxf1 {[%clk 0:01:13]} 25. Rxf1 {[%clk 0:01:20]}  Nf6 {[%clk 0:01:03]} 26. e5 {[%clk 0:01:16]}  dxe5 {[%clk 0:01:03]} 27. fxe5 {[%clk 0:01:16]}  Nh5 {[%clk 0:01:03]} 28. Qh2 {[%clk 0:01:13]}  Rfe8 {[%clk 0:00:53]} 29. g4 {[%clk 0:01:12]}  Qxe5 {[%clk 0:00:48]} 30. Qxe5 {[%clk 0:00:52]}  Rxe5 {[%clk 0:00:47]} 31. Kf2 {[%clk 0:00:50]}  Nf4 {[%clk 0:00:45]} 32. Rd1 {[%clk 0:00:42]}  Nxh3+ {[%clk 0:00:37]} 33. Kf3 {[%clk 0:00:42]}  Ng5+ {[%clk 0:00:35]} 34. Kf4 {[%clk 0:00:43]}  f6 {[%clk 0:00:35]} 35. d6 {[%clk 0:00:43]}  Rd8 {[%clk 0:00:35]} 36. Nd5 {[%clk 0:00:36]}  Ne6+ {[%clk 0:00:32]} 37. Kf3 {[%clk 0:00:33]}  Kf7 {[%clk 0:00:32]} 38. Nb4 {[%clk 0:00:14]}  Ng5+ {[%clk 0:00:29]} 39. Kf4 {[%clk 0:00:12]}  Rc5 {[%clk 0:00:21]} 40. Na6 {[%clk 0:00:04]}  Ne6+ {[%clk 0:00:18]} 41. Kf3 {[%clk 0:00:04]}  Rc6 {[%clk 0:00:16]} 42. Nb4 {[%clk 0:00:05]}  Rcxd6 {[%clk 0:00:16]} 43. Re1 {[%clk 0:00:06]}  Rd1 {[%clk 0:00:15]} 44. Rxd1 {[%clk 0:00:03]}  Rxd1 {[%clk 0:00:14]} 45. Bc2 {[%clk 0:00:04]}  Rf1+ {[%clk 0:00:12]} 46. Ke2 {[%clk 0:00:04]}  Rf4 {[%clk 0:00:12]} 47. Nd5 {[%clk 0:00:02]}  Rxg4 {[%clk 0:00:11]} 48. Ne3 {[%clk 0:00:01]}  Rh4 {[%clk 0:00:10]} 49. Kf3 {[%clk 0:00:02]}  Ng5+ {[%clk 0:00:09]} 50. Kg3 {[%clk 0:00:02]}  Rh3+ {[%clk 0:00:09]} 51. Kf2 {[%clk 0:00:03]}  Rf3+ {[%clk 0:00:09]} 52. Ke2 {[%clk 0:00:04]}  h5 {[%clk 0:00:09]} 53. Nd5 {[%clk 0:00:05]}  Rf4 {[%clk 0:00:06]} 54. Nc7 {[%clk 0:00:05]}  Rf5 {[%clk 0:00:06]} 55. Bxf5 {[%clk 0:00:05]}  gxf5 {[%clk 0:00:05]} 56. Nxb5 {[%clk 0:00:06]}  h4 {[%clk 0:00:04]} 57. Nd6+ {[%clk 0:00:06]}  Ke6 {[%clk 0:00:04]} 58. Nxc4 {[%clk 0:00:07]}  h3 {[%clk 0:00:04]} 59. Kf2 {[%clk 0:00:07]}  Ne4+ {[%clk 0:00:03]} 60. Kg1 {[%clk 0:00:06]}  Nxc3 {[%clk 0:00:03]} 61. Kh2 {[%clk 0:00:06]}  f4 {[%clk 0:00:03]} 62. Kxh3 {[%clk 0:00:05]}  Kf5 {[%clk 0:00:04]} 63. Nd2 {[%clk 0:00:05]}  Ne4 {[%clk 0:00:03]} 64. Nf3 {[%clk 0:00:05]}  Ng5+ {[%clk 0:00:03]} 65. Kg2 {[%clk 0:00:04]}  Nxf3 {[%clk 0:00:02]} 66. Kxf3 {[%clk 0:00:05]}  Ke5 {[%clk 0:00:03]} 67. Kf2 {[%clk 0:00:05]}  Ke4 {[%clk 0:00:03]} 68. Ke2 {[%clk 0:00:06]}  f3+ {[%clk 0:00:03]} 69. Kf2 {[%clk 0:00:07]}  Kf4 {[%clk 0:00:03]} 70. Kf1 {[%clk 0:00:08]}  Ke3 {[%clk 0:00:03]} 71. Ke1 {[%clk 0:00:08]}  f5 {[%clk 0:00:03]} 72. Kf1 {[%clk 0:00:08]}  f2 {[%clk 0:00:04]} 0-1


[Site "https://www.chess.com"]

[Event "Titled Tuesday Blitz April 18 Late 2023"]
[White "ritanovikova"]
[Black "Rose, Felix"]
[BlackFideId "5105722"]
[WhiteElo "2136"]
[BlackElo "2039"]
[Result "0-1"]
[Round "10"]
[TimeControl "180+2"]
[Date "2023.04.18"]
[WhiteClock "0:01:49"]
[BlackClock "0:02:30"]

1. e4 {[%clk 0:02:33]}  c5 {[%clk 0:02:59]} 2. Nc3 {[%clk 0:02:33]}  e6 {[%clk 0:02:58]} 3. d3 {[%clk 0:02:34]}  Nc6 {[%clk 0:02:58]} 4. g3 {[%clk 0:02:34]}  Rb8 {[%clk 0:02:57]} 5. Bg2 {[%clk 0:02:33]}  b5 {[%clk 0:02:57]} 6. Be3 {[%clk 0:02:33]}  b4 {[%clk 0:02:57]} 7. Nce2 {[%clk 0:02:33]}  g6 {[%clk 0:02:56]} 8. Qd2 {[%clk 0:02:32]}  Bg7 {[%clk 0:02:56]} 9. h4 {[%clk 0:02:13]}  Bxb2 {[%clk 0:02:51]} 10. Rb1 {[%clk 0:02:11]}  Bg7 {[%clk 0:02:48]} 11. h5 {[%clk 0:01:58]}  Qa5 {[%clk 0:02:47]} 12. hxg6 {[%clk 0:01:58]}  hxg6 {[%clk 0:02:41]} 13. Nf3 {[%clk 0:01:55]}  Rxh1+ {[%clk 0:02:39]} 14. Bxh1 {[%clk 0:01:55]}  Qxa2 {[%clk 0:02:38]} 15. Rb3 {[%clk 0:01:49]}  Na5 {[%clk 0:02:30]} 0-1


[Site "https://www.chess.com"]

[Event "Titled Tuesday Blitz April 18 Late 2023"]
[White "Oliveira, Tiago Batista"]
[Black "Novikova, Galina"]
[WhiteFideId "2108291"]
[BlackFideId "4157095"]
[WhiteElo "1962"]
[BlackElo "1953"]
[Result "0-1"]
[Round "10"]
[TimeControl "180+2"]
[Date "2023.04.18"]
[WhiteClock "0:00:10"]
[BlackClock "0:00:10"]

1. d4 {[%clk 0:03:00]}  e5 {[%clk 0:02:58]} 2. dxe5 {[%clk 0:02:58]}  d6 {[%clk 0:02:58]} 3. exd6 {[%clk 0:02:57]}  Bxd6 {[%clk 0:02:59]} 4. Nf3 {[%clk 0:02:57]}  Nc6 {[%clk 0:02:59]} 5. g3 {[%clk 0:02:58]}  Bg4 {[%clk 0:02:58]} 6. Bg2 {[%clk 0:02:58]}  Qe7 {[%clk 0:02:59]} 7. c4 {[%clk 0:02:57]}  O-O-O {[%clk 0:02:59]} 8. Qa4 {[%clk 0:02:56]}  h5 {[%clk 0:02:50]} 9. Nc3 {[%clk 0:02:52]}  Nf6 {[%clk 0:02:42]} 10. Be3 {[%clk 0:02:33]}  a6 {[%clk 0:02:27]} 11. a3 {[%clk 0:01:52]}  Ne5 {[%clk 0:01:35]} 12. Nd4 {[%clk 0:01:39]}  h4 {[%clk 0:01:27]} 13. Rc1 {[%clk 0:00:41]}  hxg3 {[%clk 0:01:24]} 14. hxg3 {[%clk 0:00:39]}  Rxh1+ {[%clk 0:01:25]} 15. Bxh1 {[%clk 0:00:38]}  Rh8 {[%clk 0:01:20]} 16. Bg2 {[%clk 0:00:38]}  Rh2 {[%clk 0:01:19]} 17. Kf1 {[%clk 0:00:32]}  Ng6 {[%clk 0:00:54]} 18. Nc6 {[%clk 0:00:27]}  Qf8 {[%clk 0:00:32]} 19. Na7+ {[%clk 0:00:24]}  Kd8 {[%clk 0:00:28]} 20. Bxb7 {[%clk 0:00:22]}  Bd7 {[%clk 0:00:21]} 21. Nc6+ {[%clk 0:00:18]}  Ke8 {[%clk 0:00:20]} 22. c5 {[%clk 0:00:17]}  Rh1+ {[%clk 0:00:19]} 23. Kg2 {[%clk 0:00:18]}  Rxc1 {[%clk 0:00:20]} 24. cxd6 {[%clk 0:00:15]}  Re1 {[%clk 0:00:10]} 25. Ne4 {[%clk 0:00:14]}  Qh8 {[%clk 0:00:10]} 26. Nxf6+ {[%clk 0:00:12]}  gxf6 {[%clk 0:00:11]} 27. Qe4+ {[%clk 0:00:11]}  Kf8 {[%clk 0:00:10]} 28. dxc7 {[%clk 0:00:10]}  Qh1# {[%clk 0:00:10]} 0-1


[Site "https://www.chess.com"]